fUST/lending_fUST_20251004
["ID","MTS","AMOUNT","RATE_DAILY","PERIOD"]
[388956205,1759542645638,-1047.06,0.00027397,9]
[388956207,1759542645647,-500.0,0.00027397,9]
[388956208,1759542645656,-500.0,0.00027397,9]
[388956210,1759542645666,-500.0,0.00027397,9]
[388956211,1759542645675,-500.0,0.00027397,9]
[388956212,1759542645687,-500.0,0.00027397,9]
[388956213,1759542645697,-500.0,0.00027397,9]
[388956214,1759542645706,-500.0,0.00027397,9]
[388956215,1759542645715,-500.0,0.00027397,9]
[388956216,1759542645724,-500.0,0.00027397,9]
[388956217,1759542645734,-500.0,0.00027397,9]
[388956218,1759542645743,-500.0,0.00027397,9]
[388956219,1759542645754,-500.0,0.00027397,9]
[388956220,1759542645763,-500.0,0.00027397,9]
[388956221,1759542645772,-500.0,0.00027397,9]
[388956222,1759542645782,-500.0,0.00027397,9]
[388956223,1759542645791,-500.0,0.00027397,9]
[388956224,1759542645800,-500.0,0.00027397,9]
[388956225,1759542645809,-500.0,0.00027397,9]
[388956226,1759542645819,-500.0,0.00027397,9]
[388956227,1759542645828,-500.0,0.00027397,9]
[388956228,1759542645836,-500.0,0.00027397,9]
[388956229,1759542645846,-500.0,0.00027397,9]
[388956230,1759542645855,-415.48894974,0.00027397,9]
[388956231,1759542645863,-532.79,0.00027397,9]
[388956232,1759542645872,-500.0,0.00027397,9]
[388956233,1759542645881,-500.0,0.00027397,9]
[388956234,1759542645890,-500.0,0.00027397,9]
[388956235,1759542645899,-500.0,0.00027397,9]
[388956236,1759542645909,-500.0,0.00027397,9]
[388956237,1759542645922,-600.0,0.00027397,9]
[388956238,1759542645931,-500.0,0.00027397,9]
[388956239,1759542645940,-500.0,0.00027397,9]
[388956240,1759542645950,-530.9,0.00027397,9]
[388956241,1759542645959,-500.0,0.00027397,9]
[388956242,1759542646064,-1481.73,0.00027397,9]
[388956243,1759542646083,-500.0,0.00027397,9]
[388956244,1759542646092,-500.0,0.00027397,9]
[388956245,1759542646101,-500.0,0.00027397,9]
[388956246,1759542646111,-625.3,0.00027397,9]
[388956247,1759542646120,-1997.98,0.00027397,9]
[388956248,1759542646129,-500.0,0.00027397,9]
[388956249,1759542646138,-500.0,0.00027397,9]
[388956250,1759542646148,-486.01702292,0.00027397,9]
[388956251,1759542646157,-500.0,0.00027397,9]
[388956252,1759542646166,-577.2,0.00027397,9]
[388956253,1759542646176,-666.21,0.00027397,9]
[388956254,1759542646185,-500.0,0.00027397,9]
[388956255,1759542646194,-500.0,0.00027397,9]
[388956256,1759542646203,-500.0,0.00027397,9]
[388956257,1759542646213,-583.59,0.00027397,9]
[388956258,1759542646222,-500.0,0.00027397,9]
[388956259,1759542646231,-1488.36,0.00027397,9]
[388956260,1759542646240,-862.14,0.00027397,9]
[388956261,1759542646249,-500.0,0.00027397,9]
[388956262,1759542646259,-500.0,0.00027397,9]
[388956263,1759542646269,-500.0,0.00027397,9]
[388956264,1759542646279,-500.0,0.00027397,9]
[388956265,1759542646288,-500.0,0.00027397,9]
[388956266,1759542646297,-618.50616044,0.00027397,9]
[388956267,1759542646307,-500.0,0.00027397,9]
[388956268,1759542646316,-500.0,0.00027397,9]
[388956269,1759542646325,-500.0,0.00027397,9]
[388956270,1759542646334,-495.78442434,0.00027397,9]
[388956271,1759542646344,-1439.19,0.00027397,9]
[388956272,1759542646354,-500.0,0.00027397,9]
[388956273,1759542646363,-500.0,0.00027397,9]
[388956274,1759542646373,-4209.86,0.00027397,9]
[388956275,1759542646381,-322.83737882,0.00027397,9]
[388956276,1759542646391,-500.0,0.00027397,9]
[388956277,1759542646400,-860.79,0.00027397,9]
[388956278,1759542646409,-500.0,0.00027397,9]
[388956279,1759542646418,-500.0,0.00027397,9]
[388956280,1759542646427,-500.0,0.00027397,9]
[388956281,1759542646437,-3218.36,0.00027397,9]
[388956282,1759542646449,-3806.56,0.00027397,9]
[388956283,1759542646458,-874.5,0.00027397,9]
[388956284,1759542646467,-500.0,0.00027397,9]
[388956285,1759542646476,-500.0,0.00027397,9]
[388956286,1759542646487,-500.0,0.00027397,9]
[388956287,1759542646498,-1944.44,0.00027397,9]
[388956288,1759542646508,-500.0,0.00027397,9]
[388956289,1759542646519,-989.33,0.00027397,9]
[388956290,1759542646528,-548.75,0.00027397,9]
[388956291,1759542646537,-500.0,0.00027397,9]
[388956292,1759542646547,-558.34,0.00027397,9]
[388956293,1759542646557,-633.5,0.00027397,9]
[388956294,1759542646567,-633.5,0.00027397,9]
[388956295,1759542646576,-500.0,0.00027397,9]
[388956296,1759542646586,-633.5,0.00027397,9]
[388956297,1759542646595,-633.5,0.00027397,9]
[388956298,1759542646605,-633.5,0.00027397,9]
[388956299,1759542646614,-633.5,0.00027397,9]
[388956300,1759542646624,-633.5,0.00027397,9]
[388956301,1759542646633,-500.0,0.00027397,9]
[388956302,1759542646642,-633.5,0.00027397,9]
[388956303,1759542646650,-633.5,0.00027397,9]
[388956304,1759542646660,-633.5,0.00027397,9]
[388956305,1759542646668,-633.5,0.00027397,9]
[388956306,1759542646678,-4277.88,0.00027397,9]
[388956307,1759542646687,-500.0,0.00027397,9]
[388956308,1759542646696,-633.5,0.00027397,9]
[388956309,1759542646705,-488.59497018,0.00027397,9]
[388956310,1759542646714,-633.5,0.00027397,9]
[388956311,1759542646723,-633.5,0.00027397,9]
[388956312,1759542646732,-633.5,0.00027397,9]
[388956313,1759542646741,-500.0,0.00027397,9]
[388956314,1759542646750,-633.5,0.00027397,9]
[388956315,1759542646759,-633.5,0.00027397,9]
[388956316,1759542646768,-600.54,0.00027397,9]
[388956317,1759542646777,-633.5,0.00027397,9]
[388956318,1759542646787,-500.0,0.00027397,9]
[388956319,1759542646796,-633.5,0.00027397,9]
[388956320,1759542646806,-633.5,0.00027397,9]
[388956321,1759542646815,-500.0,0.00027397,9]
[388956322,1759542646824,-633.5,0.00027397,9]
[388956323,1759542646833,-633.5,0.00027397,9]
[388956324,1759542646842,-633.5,0.00027397,9]
[388956325,1759542646851,-1320.82,0.00027397,9]
[388956326,1759542646860,-500.0,0.00027397,9]
[388956327,1759542646870,-633.71246321,0.00027397,9]
[388956328,1759542646879,-533.21,0.00027397,9]
[388956329,1759542646888,-500.0,0.00027397,9]
[388956330,1759542646897,-2531.43,0.00027397,9]
[388956331,1759542646908,-374.23650633,0.00027397,9]
[388956332,1759542646918,-500.0,0.00027397,9]
[388956333,1759542646928,-500.0,0.00027397,9]
[388956334,1759542646938,-500.0,0.00027397,9]
[388956335,1759542646948,-1311.78,0.00027397,9]
[388956336,1759542646959,-500.0,0.00027397,9]
[388956337,1759542646969,-500.0,0.00027397,9]
[388956338,1759542646978,-500.0,0.00027397,9]
[388956339,1759542646989,-1535.05,0.00027397,9]
[388956340,1759542647001,-574.6,0.00027397,9]
[388956341,1759542647010,-386.3465436,0.00027397,9]
[388956342,1759542647019,-489.31854265,0.00027397,9]
[388956343,1759542647029,-485.7486831,0.00027397,9]
[388956344,1759542647039,-500.0,0.00027397,9]
[388956345,1759542647050,-1009.73,0.00027397,9]
[388956346,1759542647059,-500.0,0.00027397,9]
[388956347,1759542647069,-500.0,0.00027397,9]
[388956348,1759542647080,-500.0,0.00027397,9]
[388956349,1759542647090,-500.0,0.00027397,9]
[388956350,1759542647099,-500.0,0.00027397,9]
[388956351,1759542647109,-569.31,0.00027397,9]
[388956352,1759542647117,-500.0,0.00027397,9]
[388956353,1759542647126,-2338.68,0.00027397,9]
[388956354,1759542647136,-332.73377822,0.00027397,9]
[388956355,1759542647144,-1792.05,0.00027397,9]
[388956356,1759542647153,-500.0,0.00027397,9]
[388956357,1759542647162,-500.0,0.00027397,9]
[388956358,1759542647171,-481.87974871,0.00027397,9]
[388956359,1759542647180,-500.0,0.00027397,9]
[388956360,1759542647189,-500.0,0.00027397,9]
[388956361,1759542647198,-500.0,0.00027397,9]
[388956362,1759542647207,-500.0,0.00027397,9]
[388956363,1759542647216,-500.0,0.00027397,9]
[388956364,1759542647226,-1663.0,0.00027397,9]
[388956365,1759542647235,-937.05,0.00027397,9]
[388956366,1759542647243,-500.0,0.00027397,9]
[388956367,1759542647253,-1380.18,0.00027397,9]
[388956368,1759542647262,-500.0,0.00027397,9]
[388956369,1759542647271,-500.0,0.00027397,9]
[388956370,1759542647280,-489.61416106,0.00027397,9]
[388956371,1759542647289,-500.0,0.00027397,9]
[388956372,1759542647298,-500.0,0.00027397,9]
[388956373,1759542647308,-500.0,0.00027397,9]
[388956374,1759542647317,-1107.41,0.00027397,9]
[388956375,1759542647326,-500.0,0.00027397,9]
[388956376,1759542647335,-770.78,0.00027397,9]
[388956377,1759542647344,-4732.94,0.00027397,9]
[388956378,1759542647353,-1171.51,0.00027397,9]
[388956379,1759542647362,-300.86542138,0.00027397,9]
[388956380,1759542647371,-500.0,0.00027397,9]
[388956381,1759542647380,-805.0,0.00027397,9]
[388956382,1759542647391,-531.88,0.00027397,9]
[388956383,1759542647400,-500.0,0.00027397,9]
[388956384,1759542647410,-500.0,0.00027397,9]
[388956385,1759542647420,-542.48,0.00027397,9]
[388956386,1759542647429,-500.0,0.00027397,9]
[388956387,1759542647441,-500.0,0.00027397,9]
[388956388,1759542647450,-1000.0,0.00027397,9]
[388956389,1759542647458,-1768.56,0.00027397,9]
[388956390,1759542647467,-500.0,0.00027397,9]
[388956391,1759542647476,-500.0,0.00027397,9]
[388956392,1759542647484,-500.0,0.00027397,9]
[388956393,1759542647494,-7029.99,0.00027397,9]
[388956394,1759542647503,-544.86,0.00027397,9]
[388956395,1759542647512,-500.0,0.00027397,9]
[388956396,1759542647521,-389.46762912,0.00027397,9]
[388956397,1759542647530,-500.0,0.00027397,9]
[388956398,1759542647539,-500.0,0.00027397,9]
[388956399,1759542647548,-275.335864,0.00027397,9]
[388956400,1759542647558,-500.0,0.00027397,9]
[388956401,1759542647568,-500.0,0.00027397,9]
[388956402,1759542647577,-500.0,0.00027397,9]
[388956403,1759542647586,-9306.08,0.00027397,3]
[388956404,1759542647595,-500.0,0.00027397,9]
[388956405,1759542647604,-463.00733163,0.00027397,9]
[388956406,1759542647613,-500.0,0.00027397,9]
[388956407,1759542647622,-1652.46,0.00027397,9]
[388956408,1759542647631,-890.85,0.00027397,9]
[388956409,1759542647640,-500.0,0.00027397,9]
[388956410,1759542647649,-1339.14,0.00027397,9]
[388956411,1759542647659,-500.0,0.00027397,9]
[388956412,1759542647668,-266.54189113,0.00027397,9]
[388956413,1759542647779,-805.52,0.00027397,9]
[388956414,1759542647789,-519.32,0.00027397,9]
[388956415,1759542647799,-500.0,0.00027397,9]
[388956416,1759542647807,-500.0,0.00027397,9]
[388956417,1759542647817,-500.0,0.00027397,9]
[388956418,1759542647827,-500.0,0.00027397,9]
[388956419,1759542647835,-685.6,0.00027397,9]
[388956420,1759542647844,-500.0,0.00027397,9]
[388956421,1759542647853,-500.0,0.00027397,9]
[388956422,1759542647862,-500.0,0.00027397,9]
[388956423,1759542647871,-500.0,0.00027397,9]
[388956424,1759542647880,-500.0,0.00027397,7]
[388956425,1759542647889,-1182.07,0.00027397,9]
[388956426,1759542647898,-2372.31,0.00027397,9]
[388956427,1759542647907,-500.0,0.00027397,9]
[388956428,1759542647916,-500.0,0.00027397,9]
[388956429,1759542647925,-500.0,0.00027397,9]
[388956430,1759542647934,-483.31641846,0.00027397,9]
[388956431,1759542647943,-2040.79,0.00027397,9]
[388956432,1759542647952,-484.46115289,0.00027397,9]
[388956433,1759542647961,-500.0,0.00027397,9]
[388956434,1759542647970,-500.0,0.00027397,9]
[388956435,1759542647978,-5133.23,0.00027397,9]
[388956436,1759542647987,-500.0,0.00027397,9]
[388956437,1759542647996,-500.0,0.00027397,9]
[388956438,1759542648006,-728.89,0.00027397,9]
[388956439,1759542648015,-734.38,0.00027397,9]
[388956440,1759542648024,-500.0,0.00027397,9]
[388956441,1759542648034,-737.02,0.00027397,9]
[388956442,1759542648043,-500.0,0.00027397,9]
[388956443,1759542648052,-3941.35,0.00027397,9]
[388956444,1759542648061,-500.0,0.00027397,9]
[388956445,1759542648070,-1890.27,0.00027397,9]
[388956446,1759542648079,-1890.27,0.00027397,9]
[388956447,1759542648088,-1890.27,0.00027397,9]
[388956448,1759542648097,-1890.27,0.00027397,9]
[388956449,1759542648106,-1890.27,0.00027397,9]
[388956450,1759542648116,-500.0,0.00027397,9]
[388956451,1759542648125,-1890.27,0.00027397,9]
[388956452,1759542648135,-1890.27,0.00027397,9]
[388956453,1759542648144,-500.0,0.00027397,9]
[388956454,1759542648153,-1890.27,0.00027397,9]
[388956455,1759542648162,-2264.79,0.00027397,9]
[388956456,1759542648172,-1890.27,0.00027397,9]
[388956457,1759542648181,-1890.27,0.00027397,9]
[388956458,1759542648190,-1890.27,0.00027397,9]
[388956459,1759542648200,-835.8291296,0.00027397,9]
[388956461,1759542835374,214.0,0.000272,120]
[388956462,1759542907322,151.0,0.00018033,2]
[388956465,1759543118151,435.0,0.00028767,120]
[388956469,1759543232893,623.145,0.00028767,120]
[388956471,1759543294732,1008.11,0.00025,30]
[388956538,1759543440570,500.0,0.00025,30]
[388956544,1759543659680,267.30943,0.00028767,120]
[388956546,1759543721086,2522.51317487,0.0002876,120]
[388956598,1759543831980,-5000.0,0.00020957,2]
[388956600,1759543831994,-501.87223816,0.00021,2]
[388956602,1759543832003,-300.0,0.00021375,2]
[388956604,1759543832013,-251.90542183,0.00021376,2]
[388956606,1759543832024,-300.0,0.00021376,20]
[388956608,1759543832034,-300.0,0.00021376,20]
[388956610,1759543832048,-300.0,0.00021376,20]
[388956612,1759543832059,-300.0,0.00021376,20]
[388956614,1759543832067,-300.0,0.00021376,20]
[388956616,1759543832078,-300.0,0.00021376,20]
[388956618,1759543832087,-300.0,0.00021376,20]
[388956620,1759543832096,-300.0,0.00021376,20]
[388956621,1759543832105,-300.0,0.00021376,20]
[388956622,1759543832114,-300.0,0.00021376,20]
[388956624,1759543832124,-300.0,0.00021376,20]
[388956627,1759543832133,-300.0,0.00021376,20]
[388956628,1759543832141,-300.0,0.00021376,20]
[388956629,1759543832150,-300.0,0.00021376,20]
[388956630,1759543832159,-300.0,0.00021376,20]
[388956633,1759543832169,-600.0,0.00021803,20]
[388956635,1759543832179,-442.9983761,0.000221,2]
[388956637,1759543832188,-1041.66666667,0.00023,2]
[388956638,1759543832198,-420.0,0.00023242,2]
[388956639,1759543832207,-720.0,0.00023983,20]
[388956640,1759543832216,-293.52280873,0.00024578,2]
[388956641,1759543832225,-160.0,0.00024578,2]
[388956642,1759543832235,-160.0,0.00024578,2]
[388956643,1759543832244,-234.08929083,0.00024578,2]
[388956644,1759543832253,-1906.305038,0.000248,2]
[388956645,1759543832262,-18470.0,0.00025,5]
[388956646,1759543832271,-168.0,0.00026024,2]
[388956647,1759543832280,-250.54869406,0.00026135,2]
[388956648,1759543832290,-508.44628385,0.00026281,2]
[388956649,1759543832300,-864.0,0.00026381,30]
[388956650,1759543832309,-168.0,0.00026694,2]
[388956651,1759543832319,-250.0,0.00026732,2]
[388956652,1759543832328,-500.0,0.00026847,2]
[388956654,1759543832338,-500.0,0.00026847,2]
[388956655,1759543832348,-568.1883803,0.00026847,2]
[388956656,1759543832358,-500.0,0.00026847,2]
[388956657,1759543832368,-500.0,0.00026847,2]
[388956658,1759543832377,-347.42185658,0.00026847,2]
[388956659,1759543832386,-205.26909517,0.00026847,2]
[388956660,1759543832395,-1443.33036248,0.00026985,2]
[388956662,1759543832404,-224.126,0.00026986,15]
[388956664,1759543832414,-174.69977533,0.0002699,2]
[388956666,1759543832423,-1495.45671172,0.00027,9]
[388956667,1759543832431,-179.77075408,0.00027024,2]
[388956668,1759543832440,-179.77075406,0.00027096,2]
[388956669,1759543832450,-500.0,0.00027139,2]
[388956670,1759543832459,-433.35500965,0.0002714,2]
[388956671,1759543832468,-1733.4200386,0.0002714,2]
[388956672,1759543832477,-3896.29489177,0.0002714,2]
[388956673,1759543832486,-310.76918419,0.0002714,2]
[388956674,1759543832496,-1241.83366002,0.0002714,2]
[388956675,1759543832505,-274981.88207143,0.00027163,2]
[388956677,1759543832611,-30516.61687736,0.00027163,2]
[388956678,1759543832621,-179.77075406,0.00027167,2]
[388956679,1759543832630,-651.3347674,0.00027167,2]
[388956680,1759543832640,-540.8213377,0.00027178,2]
[388956681,1759543832650,-637.62875466,0.00027178,2]
[388956682,1759543832659,-2550.51501864,0.00027178,2]
[388956683,1759543832669,-5732.92013315,0.00027178,2]
[388956684,1759543832678,-257.40919267,0.00027197,2]
[388956685,1759543832687,-1443.33036248,0.00027201,2]
[388956686,1759543832696,-508.44628384,0.00027209,2]
[388956687,1759543832705,-257.40919267,0.00027222,2]
[388956688,1759543832714,-340.49410271,0.00027246,2]
[388956689,1759543832723,-257.40919267,0.00027247,2]
[388956690,1759543832732,-153.16,0.00027252,10]
[388956691,1759543832741,-765.82,0.00027252,10]
[388956692,1759543832751,-151.91545871,0.00027256,2]
[388956693,1759543832760,-11777.97719818,0.00027256,2]
[388956694,1759543832769,-250.0,0.00027256,2]
[388956695,1759543832778,-250.0,0.00027256,2]
[388956696,1759543832788,-250.0,0.00027256,2]
[388956697,1759543832797,-250.0,0.00027256,2]
[388956698,1759543832806,-250.0,0.00027256,2]
[388956699,1759543832815,-250.0,0.00027256,2]
[388956700,1759543832824,-250.0,0.00027256,2]
[388956701,1759543832833,-250.0,0.00027256,2]
[388956702,1759543832842,-250.0,0.00027256,2]
[388956703,1759543832851,-250.0,0.00027256,2]
[388956704,1759543832860,-250.0,0.00027256,2]
[388956705,1759543832869,-250.0,0.00027256,2]
[388956706,1759543832878,-250.0,0.00027256,2]
[388956707,1759543832887,-153.34890695,0.00027256,2]
[388956708,1759543832897,-91293.52028688,0.00027263,2]
[388956709,1759543832908,-311.11696286,0.00027263,2]
[388956716,1759543837813,-166.0,0.00027256,2]
[388956717,1759543837823,-190896.56858526,0.00027263,2]
[388956718,1759543837833,-151.0,0.00027267,2]
[388956719,1759543837843,-153.23065767,0.00027267,2]
[388956720,1759543837852,-151.0,0.00027267,2]
[388956721,1759543837861,-151.0,0.00027267,2]
[388956722,1759543837870,-151.0,0.00027267,2]
[388956723,1759543837879,-151.0,0.00027267,2]
[388956724,1759543837889,-151.0,0.00027267,2]
[388956725,1759543837900,-252.53076032,0.00027267,2]
[388956726,1759543837909,-151.0,0.00027267,2]
[388956727,1759543837919,-151.0,0.00027267,2]
[388956728,1759543837928,-151.0,0.00027267,2]
[388956729,1759543837937,-151.0,0.00027267,2]
[388956730,1759543837947,-159.72889547,0.00027267,2]
[388956731,1759543837956,-151.0,0.00027267,2]
[388956732,1759543837965,-151.0,0.00027267,2]
[388956733,1759543837975,-500.0,0.00027267,2]
[388956734,1759543837990,-151.19396176,0.00027267,2]
[388956735,1759543837999,-151.0,0.00027267,2]
[388956736,1759543838009,-151.0,0.00027267,2]
[388956737,1759543838018,-151.0,0.00027267,2]
[388956738,1759543838029,-151.0,0.00027267,2]
[388956739,1759543838039,-151.0,0.00027267,2]
[388956740,1759543838049,-151.23000207,0.00027267,2]
[388956741,1759543838060,-151.0,0.00027267,2]
[388956742,1759543838070,-151.0,0.00027267,2]
[388956743,1759543838080,-151.0,0.00027267,2]
[388956744,1759543838090,-151.0,0.00027267,2]
[388956745,1759543838100,-151.0,0.00027267,2]
[388956746,1759543838110,-151.0,0.00027267,2]
[388956747,1759543838120,-151.0,0.00027267,2]
[388956748,1759543838129,-151.0,0.00027267,2]
[388956749,1759543838139,-151.0,0.00027267,2]
[388956750,1759543838148,-257.40919267,0.00027272,2]
[388956751,1759543838158,-370000.0,0.00027273,2]
[388956752,1759543838167,-500.0,0.00027273,2]
[388956753,1759543838177,-501.82380182,0.00027273,2]
[388956754,1759543838187,-500.0,0.00027273,2]
[388956755,1759543838196,-500.0,0.00027273,2]
[388956756,1759543838206,-500.0,0.00027273,2]
[388956757,1759543838215,-500.0,0.00027273,2]
[388956758,1759543838225,-500.0,0.00027273,2]
[388956759,1759543838234,-501.82208464,0.00027273,2]
[388956760,1759543838244,-500.0,0.00027273,2]
[388956761,1759543838253,-151.0,0.00027273,7]
[388956762,1759543838262,-151.0,0.00027273,7]
[388956763,1759543838272,-151.0,0.00027273,7]
[388956764,1759543838281,-151.0,0.00027273,7]
[388956765,1759543838290,-159.933692,0.00027273,7]
[388956766,1759543838300,-151.0,0.00027273,7]
[388956767,1759543838310,-10000.0,0.00027297,2]
[388956768,1759543838320,-257.40919267,0.00027297,2]
[388956769,1759543838330,-193.473569,0.000273,2]
[388956770,1759543838340,-651.33476739,0.00027369,2]
[388956771,1759543838350,-2080.2666734,0.00027371,2]
[388956772,1759543838360,-500.0,0.00027373,2]
[388956773,1759543838369,-500.0,0.00027373,2]
[388956774,1759543838378,-481.28229901,0.00027373,2]
[388956775,1759543838387,-500.0,0.00027373,2]
[388956776,1759543838397,-500.0,0.00027373,2]
[388956777,1759543838406,-507.37597527,0.00027373,2]
[388956778,1759543838416,-500.0,0.00027373,2]
[388956779,1759543838426,-500.0,0.00027373,2]
[388956780,1759543838435,-500.0,0.00027373,2]
[388956781,1759543838444,-159.13756808,0.00027373,2]
[388956782,1759543838453,-502.80225857,0.00027373,2]
[388956783,1759543838463,-500.0,0.00027373,2]
[388956784,1759543838472,-500.70106616,0.00027373,2]
[388956785,1759543838481,-500.49192155,0.00027373,2]
[388956786,1759543838490,-500.0,0.00027373,2]
[388956787,1759543838499,-500.0,0.00027373,2]
[388956788,1759543838507,-500.0,0.00027373,2]
[388956789,1759543838516,-500.96882753,0.00027373,2]
[388956790,1759543838525,-500.72850474,0.00027373,2]
[388956791,1759543838534,-500.84700387,0.00027373,2]
[388956792,1759543838544,-500.0,0.00027373,2]
[388956793,1759543838554,-500.0,0.00027373,2]
[388956794,1759543838563,-500.0,0.00027373,2]
[388956795,1759543838572,-500.0,0.00027373,2]
[388956796,1759543838582,-500.66049701,0.00027373,2]
[388956797,1759543838591,-500.0,0.00027373,2]
[388956798,1759543838600,-500.0,0.00027373,2]
[388956799,1759543838609,-500.0,0.00027373,2]
[388956800,1759543838619,-1801.18,0.00027386,2]
[388956801,1759543838628,-198.94,0.00027387,3]
[388956802,1759543838637,-596.82,0.00027387,3]
[388956803,1759543838646,-236.04532527,0.00027397,2]
[388956804,1759543838655,-500.0,0.00027397,9]
[388956805,1759543838664,-500.0,0.00027397,9]
[388956806,1759543838673,-500.0,0.00027397,9]
[388956807,1759543838683,-500.0,0.00027397,9]
[388956808,1759543838692,-500.0,0.00027397,9]
[388956809,1759543838701,-482.07657997,0.00027397,9]
[388956810,1759543838711,-500.0,0.00027397,9]
[388956811,1759543838720,-960.09,0.00027397,9]
[388956812,1759543838731,-500.0,0.00027397,9]
[388956813,1759543838740,-500.0,0.00027397,9]
[388956814,1759543838750,-485.57645482,0.00027397,9]
[388956815,1759543838759,-500.0,0.00027397,9]
[388956816,1759543838770,-500.0,0.00027397,9]
[388956817,1759543838779,-500.0,0.00027397,9]
[388956818,1759543838789,-500.0,0.00027397,9]
[388956819,1759543838799,-500.0,0.00027397,9]
[388956820,1759543838809,-500.0,0.00027397,9]
[388956821,1759543838818,-500.0,0.00027397,9]
[388956822,1759543838828,-520.05,0.00027397,9]
[388956823,1759543838837,-500.0,0.00027397,9]
[388956824,1759543838846,-500.0,0.00027397,9]
[388956825,1759543838856,-500.0,0.00027397,9]
[388956826,1759543838866,-500.0,0.00027397,9]
[388956827,1759543838875,-358.55159582,0.00027397,9]
[388956828,1759543838884,-500.0,0.00027397,9]
[388956829,1759543838894,-288.88192159,0.00027397,9]
[388956830,1759543838904,-500.0,0.00027397,9]
[388956831,1759543838913,-500.0,0.00027397,9]
[388956832,1759543838922,-5773.75,0.00027397,9]
[388956833,1759543838932,-500.0,0.00027397,9]
[388956834,1759543838942,-359.27437895,0.00027397,9]
[388956835,1759543838951,-500.0,0.00027397,9]
[388956836,1759543838960,-500.0,0.00027397,9]
[388956837,1759543838970,-500.0,0.00027397,9]
[388956838,1759543838980,-322.18152945,0.00027397,9]
[388956839,1759543838998,-500.0,0.00027397,9]
[388956840,1759543839010,-500.0,0.00027397,9]
[388956841,1759543839019,-465.81052306,0.00027397,9]
[388956842,1759543839029,-500.0,0.00027397,9]
[388956843,1759543839039,-500.0,0.00027397,9]
[388956844,1759543839049,-500.0,0.00027397,9]
[388956845,1759543839059,-500.0,0.00027397,9]
[388956846,1759543839068,-500.0,0.00027397,9]
[388956847,1759543839078,-1260.08,0.00027397,9]
[388956848,1759543839087,-500.0,0.00027397,9]
[388956849,1759543839097,-500.0,0.00027397,9]
[388956850,1759543839106,-500.0,0.00027397,9]
[388956851,1759543839115,-500.0,0.00027397,9]
[388956852,1759543839125,-500.0,0.00027397,9]
[388956853,1759543839140,-692.65,0.00027397,9]
[388956854,1759543839149,-500.0,0.00027397,9]
[388956855,1759543839159,-500.0,0.00027397,9]
[388956856,1759543839168,-500.0,0.00027397,9]
[388956857,1759543839178,-840.07,0.00027397,9]
[388956858,1759543839188,-500.0,0.00027397,9]
[388956859,1759543839197,-500.0,0.00027397,9]
[388956860,1759543839207,-500.0,0.00027397,9]
[388956861,1759543839217,-500.0,0.00027397,9]
[388956862,1759543839226,-848.41,0.00027397,9]
[388956863,1759543839236,-500.0,0.00027397,9]
[388956864,1759543839245,-500.0,0.00027397,9]
[388956865,1759543839255,-500.0,0.00027397,9]